[Event "1st FIDE Olympiad DIS 2023"]
[Site "Belgrade"]
[Date "2023.02.04"]
[Round "6.8"]
[White "Andriienko, Artom"]
[Black "Acs, Gabor"]
[Result "1/2-1/2"]
[ECO "A14"]
[WhiteElo "1693"]
[BlackElo "2101"]
[Annotator "TA"]
[PlyCount "125"]
[EventDate "2023.01.30"]
[EventType "team-tourn"]
[EventCountry "SRB"]
[SourceTitle "playchess.com"]
[Source "ChessBase"]
[SourceQuality "1"]
[WhiteTeam "Ukraine"]
[BlackTeam "Hungary"]
[WhiteTeamCountry "UKR"]
[BlackTeamCountry "HUN"]
[TimeControl "40/5400+30:1800+30"]

{[%evp 18,125,30,22,20,17,29,29,28,25,32,25,15,21,50,52,32,35,33,39,30,5,106,75,75,75,72,70,78,76,89,34,188,163,200,199,218,220,215,229,208,189,180,172,183,172,184,0,37,-31,-29,-28,-28,-28,-28,-28,-32,-30,-29,-29,-29,-36,0,-30,-30,-24,-17,-27,-16,-16,-12,-13,-18,-15,-18,-33,0,0,0,0,0,0,0,0,26,0,26,26,26,26,26,26,26,0,0,0,0,0,0,0,8,8,8,8,8,8,8,-18,-18,-18]} 1. Nf3 {[%emt 0:00:29]} Nf6 {[%emt 0:00:53]} 2. c4 {[%emt 0:00:27]} e6 {[%emt 0:00:27]} 3. g3 {[%emt 0:00:31]} d5 {[%emt 0:00:10]} 4. Bg2 {[%emt 0:00:09]} c6 {[%emt 0:00:26]} 5. b3 {[%emt 0:02:15]} Be7 {[%emt 0:00:14]} 6. O-O {[%emt 0:00:18]} O-O {[%emt 0:00:14]} 7. Bb2 {[%emt 0:00:35]} Nbd7 {[%emt 0:02:44]} 8. d3 {[%emt 0:00:56][%cal Bd2d3,Bd3e4,Be4e5][%mdl 32]} b6 {[%emt 0:01:15]} 9. Qc2 {[%emt 0:00:41]} Bb7 {[%emt 0:00:27]} 10. e4 {[%emt 0:00:20]} dxe4 {[%emt 0:03:00] A14: English Opening: 1...e6 with b3 by White.} 11. dxe4 {[%emt 0:00:05]} Qc7 {[%emt 0:10:43]} 12. e5 {[%emt 0:03:06]} Ng4 {[%emt 0:04:41] White has an edge.} 13. Qe2 {[%emt 0:10:12]} Rad8 {[%emt 0:09:11]} 14. h3 {[%emt 0:00:57]} Nh6 {[%emt 0:00:12]} 15. Nc3 {[%emt 0:01:21] [#]} Nc5 $146 {[%emt 0:03:42]} ({Predecessor:} 15... Kh8 16. Rad1 a6 17. Ne4 Nc5 18. Nd6 Ba8 19. g4 Nb7 20. Ne4 c5 21. Qe3 Na5 {1-0 Mueer,S (2257)-Junker,S (1861) Eschborn op 08th 2011 (1)}) 16. Rad1 {[%emt 0:14:59]} Nf5 {[%emt 0:03:27]} 17. g4 $36 {[%emt 0:00:20][%mdl 2048] b4 would be deadly. White has the initiative.} Nh4 {[%emt 0:01:08]} 18. Nxh4 {[%emt 0:00:34]} Bxh4 {[%emt 0:00:04]} 19. b4 {[%emt 0:00:49]} Na6 {[%emt 0:02:18]} (19... Nd7 $11) 20. a3 {[%emt 0:00:37]} Rxd1 {[%emt 0:01:42]} 21. Rxd1 {[%emt 0:00:11]} Rd8 {[%emt 0:00:32]} 22. Ne4 {[%emt 0:00:18] And now g5 would win.} Be7 {[%emt 0:08:02]} 23. f4 {[%emt 0:01:48]} Nb8 {[%emt 0:03:45]} 24. Kh2 {[%emt 0:10:05] White is much more active.} (24. Rxd8+ $16 Qxd8 25. f5) 24... a5 $2 {[%emt 0:12:27] [#]} (24... Rxd1 $14 25. Qxd1 c5) 25. Nd6 $1 $18 {[%emt 0:00:23][%mdl 512]} axb4 {[%emt 0:04:51]} (25... Nd7 26. Be4) 26. axb4 {[%emt 0:01:08]} Bc8 {[%emt 0:02:56][%cal Bb7c8,Bc8d7,Bd7e8][%mdl 32]} 27. b5 {[%emt 0:09:30]} Bd7 {[%emt 0:01:38]} 28. Bd4 {[%emt 0:03:51]} cxb5 {[%emt 0:01:03]} 29. cxb5 {[%emt 0:00:22] Threatens to win with Qe3.} (29. Nxb5 Bxb5 30. cxb5 Nd7 $14) 29... Be8 {[%emt 0:11:25] Black is weak on the light squares} 30. Qe3 {[%emt 0:11:29]} (30. Nxe8 $6 Rxe8 31. Qe4 Rd8 $16) 30... Nd7 {[%emt 0:02:30][%cal Bb8d7,Bd7f8,Bf8g6][%mdl 32]} (30... Bxd6 $2 31. Bxb6 (31. exd6 Qxd6 32. Rd2 Qe7 $11) 31... Qc2 32. Rc1 $18 (32. Rxd6 Rxd6 33. exd6 Bxb5 $16) (32. exd6 Qxd1 33. Bxd8 Qxd6 $11) (32. Rxd6 Rxd6 33. exd6 Bxb5 $14) (32. exd6 Qxd1 33. Bxd8 Qxd6 $11)) 31. Rc1 {[%emt 0:10:11]} Qb8 {[%emt 0:00:14] [#]} 32. Qa3 {[%emt 0:04:25]} ({White should play} 32. Rc6 $1 $18) 32... Nf8 {[%emt 0:03:13][%cal Rd8d6]} (32... Nxe5 $5 33. fxe5 Rxd6 34. exd6 Bxd6+ 35. Be5 Bxe5+ 36. Kh1 Qd8 $11) 33. Bc6 {[%emt 0:03:05]} ({Better is} 33. Be3 $14) 33... Rxd6 $15 {[%emt 0:02:29]} 34. exd6 {[%emt 0:00:05]} Bxd6 {[%emt 0:00:08]} 35. Be5 {[%emt 0:00:12]} Bxa3 {[%emt 0:02:46]} 36. Bxb8 {[%emt 0:00:03]} Bxc1 {[%emt 0:00:10]} 37. Bxe8 $11 {[%emt 0:00:03][%mdl 4096] Endgame KBB-KBN} Ng6 {[%emt 0:01:10]} 38. Kg3 {[%emt 0:00:04]} Kf8 {[%emt 0:01:38]} 39. Bc6 {[%emt 0:00:04]} Ke7 {[%emt 0:00:23]} 40. Bc7 {[%emt 0:00:06]} Be3 {[%emt 0:00:10]} 41. Kf3 {[%emt 0:30:10]} Bc5 {[%emt 0:30:43]} 42. Ke4 {[%emt 0:00:20]} Nf8 {[%emt 0:00:00]} 43. Be5 {[%emt 0:00:00]} f6 {[%emt 0:00:00]} 44. Bc3 {[%emt 0:00:00]} Nd7 {[%emt 0:00:00]} 45. f5 {[%emt 0:00:00]} exf5+ {[%emt 0:00:00]} 46. gxf5 {[%emt 0:00:00]} Nf8 {[%emt 0:00:00]} 47. Bd2 {[%emt 0:00:00]} g5 {[%emt 0:00:00]} 48. Bc3 {[%emt 0:00:00]} h5 {[%emt 0:00:00]} 49. Kf3 {[%emt 0:00:00]} Nh7 {[%emt 0:00:00]} 50. Bb2 {[%emt 0:00:00]} g4+ {[%emt 0:00:00]} 51. hxg4 {[%emt 0:00:00]} Ng5+ {[%emt 0:00:00]} 52. Kg3 {[%emt 0:00:00]} Bd6+ {[%emt 0:00:00]} 53. Kh4 {[%emt 0:00:00]} hxg4 {[%emt 0:00:00]} 54. Kxg4 {[%emt 0:00:00]} Nf7 {[%emt 0:00:00]} 55. Kf3 {[%emt 0:00:00]} Be5 {[%emt 0:00:00] The position is equal.} 56. Bc1 {[%emt 0:00:00]} Bd4 {[%emt 0:00:00]} 57. Ke4 {[%emt 0:00:00]} Bc5 {[%emt 0:00:00]} 58. Bf4 {[%emt 0:00:00]} Bd6 {[%emt 0:00:00]} 59. Be3 {[%emt 0:00:00]} Bc7 {[%emt 0:00:00]} 60. Kd5 {[%emt 0:00:00]} Nd6 {[%emt 0:00:00]} 61. Bf4 {[%emt 0:00:00]} Nxb5 {[%emt 0:00:00][%mdl 64] Discovered Attack} 62. Bxb5 {[%emt 0:00:00]} (62. Bd2 $5 Na7 $8 63. Bb7 $11) 62... Bxf4 {[%emt 0:00:00]} 63. Ke4 {[%emt 0:00:14] White really could win this.   Weighted Error Value: White=0.12 (very precise) /Black=0.15 (very precise)} 1/2-1/2

[Event "1st FIDE Olympiad DIS 2023"]
[Site "Belgrade"]
[Date "2023.02.04"]
[Round "6.8"]
[White "Mekus, Manuela"]
[Black "Petrovic, Vladan"]
[Result "1/2-1/2"]
[ECO "A07"]
[WhiteElo "1624"]
[BlackElo "1818"]
[Annotator "NA RC COMBH"]
[PlyCount "76"]
[EventDate "2023.01.30"]
[EventType "team-tourn"]
[EventCountry "SRB"]
[SourceTitle "playchess.com"]
[Source "ChessBase"]
[SourceQuality "1"]
[WhiteTeam "Germany"]
[BlackTeam "Serbia"]
[WhiteTeamCountry "GER"]
[BlackTeamCountry "SRB"]
[TimeControl "40/5400+30:1800+30"]

1. Nf3 {[%emt 0:00:41]} d5 {[%emt 0:00:09]} 2. g3 {[%emt 0:00:08]} Nf6 {[%emt 0:00:14]} 3. Bg2 {[%emt 0:00:06]} c6 {[%emt 0:01:47]} 4. d3 {[%emt 0:00:23]} Bf5 {[%emt 0:00:18]} 5. O-O {[%emt 0:03:49]} e6 {[%emt 0:01:58]} 6. Re1 {[%emt 0:03:43]} Be7 {[%emt 0:01:10]} 7. c3 {[%emt 0:00:26]} h6 {[%emt 0:00:17]} 8. Nbd2 {[%emt 0:00:27]} O-O {[%emt 0:00:17]} 9. h3 {[%emt 0:05:40]} Bh7 {[%emt 0:09:38]} 10. Ne5 {[%emt 0:04:11]} Nbd7 {[%emt 0:05:37]} 11. Nxd7 {[%emt 0:12:18]} Qxd7 {[%emt 0:00:36]} 12. e4 {[%emt 0:01:23]} dxe4 {[%emt 0:02:05]} 13. dxe4 {[%emt 0:01:22]} e5 {[%emt 0:03:13]} 14. Nc4 {[%emt 0:13:50]} Qe6 {[%emt 0:03:36]} 15. b3 {[%emt 0:07:51]} Rad8 {[%emt 0:07:07]} 16. Qe2 {[%emt 0:01:07]} b5 {[%emt 0:06:03]} 17. Nb2 {[%emt 0:00:38]} Bc5 {[%emt 0:02:42]} 18. Rd1 {[%emt 0:03:35]} Rxd1+ {[%emt 0:02:11]} 19. Nxd1 {[%emt 0:00:02]} Rd8 {[%emt 0:00:28]} 20. Nb2 {[%emt 0:06:25]} Qd7 {[%emt 0:11:56]} 21. b4 {[%emt 0:04:08]} Bb6 {[%emt 0:00:51]} 22. Kh2 {[%emt 0:02:43]} Kf8 {[%emt 0:06:21]} 23. a4 {[%emt 0:03:06]} a5 {[%emt 0:02:24]} 24. axb5 {[%emt 0:00:18]} axb4 {[%emt 0:00:12]} 25. bxc6 {[%emt 0:00:06]} Qxc6 {[%emt 0:00:37]} 26. cxb4 {[%emt 0:04:25]} Bxe4 {[%emt 0:02:00]} 27. f3 {[%emt 0:01:47]} Bd5 {[%emt 0:01:31]} 28. b5 {[%emt 0:04:50]} Qc5 {[%emt 0:01:24]} 29. Bd2 {[%emt 0:00:29]} Qd4 {[%emt 0:00:33]} 30. Ba5 {[%emt 0:01:49]} Rb8 {[%emt 0:05:25]} 31. Rd1 {[%emt 0:01:31]} Qe3 {[%emt 0:02:45]} 32. Qxe3 {[%emt 0:01:44]} Bxe3 {[%emt 0:01:45]} 33. Bc7 {[%emt 0:00:19]} Rxb5 {[%emt 0:00:43]} 34. Bxe5 {[%emt 0:00:43]} Ke7 {[%emt 0:03:23]} 35. f4 {[%emt 0:02:26]} Bxg2 {[%emt 0:00:56]} 36. Kxg2 {[%emt 0:00:43]} g5 {[%emt 0:03:32]} 37. Nc4 {[%emt 0:00:41]} gxf4 {[%emt 0:01:19]} 38. gxf4 {[%emt 0:01:19]} Rb3 {[%emt 0:02:45]} 1/2-1/2

[Event "1st FIDE Olympiad DIS 2023"]
[Site "Belgrade"]
[Date "2023.02.04"]
[Round "6.9"]
[White "Sarkar, Justin"]
[Black "Bozinovic, Bogdan"]
[Result "1-0"]
[ECO "B29"]
[WhiteElo "2345"]
[BlackElo "2131"]
[Annotator "TA"]
[PlyCount "37"]
[EventDate "2023.01.30"]
[EventType "team-tourn"]
[EventCountry "SRB"]
[SourceTitle "playchess.com"]
[Source "ChessBase"]
[SourceQuality "1"]
[WhiteTeam "United States"]
[BlackTeam "Croatia"]
[WhiteTeamCountry "USA"]
[BlackTeamCountry "CRO"]
[TimeControl "40/5400+30:1800+30"]

{[%evp 10,37,31,34,23,15,19,19,45,52,66,45,53,47,47,47,62,47,59,52,45,32,34,29,151,70,221,212,914,907]} 1. e4 {[%emt 0:00:31]} c5 {[%emt 0:01:15]} 2. Nf3 {[%emt 0:00:16]} Nf6 {[%emt 0:00:42][%cal Bg8f6,Bf6d5,Bd5b4,Bb4c6][%mdl 32]} 3. e5 {[%emt 0:01:05]} Nd5 {[%emt 0:00:20]} 4. Nc3 {[%emt 0:01:21]} e6 {[%emt 0:01:57]} 5. Ne4 {[%emt 0:02:03]} f5 {[%emt 0:00:12]} 6. Nc3 {[%emt 0:01:10]} Nb4 {[%emt 0:01:31] 6...Ne7 gains popularity. B29: Sicilian: 2 Nf3 Nf6 (Nimzowitsch Variation).} 7. a3 {[%emt 0:01:53]} N4c6 {[%emt 0:00:08] [#]} 8. b4 $1 {[%emt 0:00:21]} d5 {[%emt 0:01:45] The position is equal.} (8... b6 9. b5) 9. exd6 {[%emt 0:00:31]} Bxd6 {[%emt 0:00:09]} 10. Bc4 $1 {[%emt 0:03:00]} Nd4 {[%emt 0:03:33]} 11. Nb5 {[%emt 0:31:22]} Nbc6 {[%emt 0:03:56] [#]} 12. Nbxd4 $146 {[%emt 0:11:36]} ({Predecessor:} 12. Nxd6+ Qxd6 13. O-O O-O 14. Bb2 b5 15. Ba2 cxb4 16. axb4 Bb7 17. Re1 Nxf3+ 18. Qxf3 {0-1 Ding,L (2808)-Le,T (2542) Chess.com Rapid CGC KO 2022 (1.1)}) 12... cxd4 {[%emt 0:03:59]} 13. Bb2 {[%emt 0:01:42]} O-O {[%emt 0:07:10]} 14. Qe2 {[%emt 0:02:39]} Kh8 {[%emt 0:03:12]} 15. b5 {[%emt 0:06:07]} (15. Bxe6 $2 Bxe6 16. O-O Bd5 $19) 15... Na5 {[%emt 0:01:14]} 16. Bxd4 {[%emt 0:00:17]} (16. Bxe6 $2 Bxe6 17. O-O (17. Qxe6 $2 Re8 $19) 17... Bd5 $19) 16... Qc7 {[%emt 0:11:28] [#]} (16... Nxc4 $11 17. Qxc4 b6) 17. Bd3 {[%emt 0:02:40] White is more active.} (17. Bxe6 $2 {perishes.} Bxe6 18. O-O (18. Qxe6 $2 {loses.} Rae8 $19) 18... Bd5 $19) (17. Ba2 $1 $16) 17... e5 $2 {[%emt 0:04:19]} 18. Nxe5 $18 {[%emt 0:01:23]} ({But not} 18. Bxe5 b6 19. Bxd6 Qxd6) 18... f4 $2 {[%emt 0:03:51]} (18... b6 19. O-O Bb7) 19. Qh5 {[%emt 0:01:22] Weighted Error Value: White=0.09 (flawless) /Black=0.35} 1-0

[Event "1st FIDE Olympiad DIS 2023"]
[Site "Belgrade"]
[Date "2023.02.04"]
[Round "6.10"]
[White "Glazar, Domagoj"]
[Black "Obodchuk, Andrei"]
[Result "1/2-1/2"]
[ECO "E71"]
[WhiteElo "2119"]
[BlackElo "2317"]
[Annotator "TA"]
[PlyCount "212"]
[EventDate "2023.01.30"]
[EventType "team-tourn"]
[EventCountry "SRB"]
[SourceTitle "playchess.com"]
[Source "ChessBase"]
[SourceQuality "1"]
[WhiteTeam "Croatia"]
[BlackTeam "FID"]
[WhiteTeamCountry "CRO"]
[TimeControl "40/5400+30:1800+30"]

{[%evp 11,211,25,44,28,28,0,7,0,5,5,47,38,50,-8,47,40,39,6,8,9,33,12,11,9,10,8,5,0,0,-16,0,-9,0,0,0,0,0,-55,-50,-55,-55,-55,-55,-63,-63,-63,-63,-78,-74,-84,-85,-85,-66,-70,-52,-57,-51,-60,-60,-60,-40,-41,-39,-40,-23,-39,-47,-47,-39,-133,-12,-12,-17,-33,-20,-19,-19,-58,-52,-52,-38,-80,-80,-106,-108,-154,-157,-150,-157,-207,-161,-169,-27,-19,0,0,0,0,0,0,0,0,0,0,0,0,0,0,0,0,0,0,0,0,0,0,0,0,0,0,0,0,0,0,0,0,0,0,0,0,0,0,0,0,0,0,0,0,0,0,0,0,0,0,0,0,0,0,0,0,0,0,0,0,0,0,0,0,0,0,0,0,0,0,0,0,0,0,0,0,0,0,0,0,0,0,0,0,0,0,0,0,0,0,0,0,0,0,0,0,0,0,0,0,0,0,0,0,0,0,0,0]} 1. d4 {[%emt 0:02:47]} Nf6 {[%emt 0:00:14]} 2. c4 {[%emt 0:00:11]} g6 {[%emt 0:00:02]} 3. Nc3 {[%emt 0:00:10]} Bg7 {[%emt 0:00:02]} 4. e4 {[%emt 0:00:10]} d6 {[%emt 0:00:04]} 5. h3 {[%emt 0:00:34]} O-O {[%emt 0:00:08]} 6. Be3 {[%emt 0:00:06]} c5 {[%emt 0:00:04]} 7. d5 {[%emt 0:02:34] E71: King's Indian: 4 e4 d6 5 h3.} e6 {[%emt 0:00:16]} 8. dxe6 {[%emt 0:00:56]} Bxe6 {[%emt 0:02:02]} 9. Nf3 {[%emt 0:04:15]} Nc6 {[%emt 0:00:44]} 10. Be2 {[%emt 0:00:27] [#]} Qa5 $146 {[%emt 0:08:20]} ({Predecessor:} 10... Qb6 11. O-O Nd7 12. Na4 Qa5 13. Rc1 Nde5 14. Nd2 Nd4 15. Nc3 Nec6 16. Bd3 Rae8 {½-½ Balla,T (2336)-Ajay,K (2356) Budapest Vezerkepzo IM 7th 2021 (5)}) 11. O-O {[%emt 0:01:04]} (11. Qxd6 $2 {loses.} Nxe4 12. Qd1 Nxc3 $19) 11... Rfd8 {[%emt 0:00:14]} 12. Qd2 {[%emt 0:03:51]} (12. a3 $14) 12... Rac8 {[%emt 0:06:42]} (12... Nd4 $11) 13. Rfd1 {[%emt 0:02:47]} Nd7 {[%emt 0:02:57]} 14. Nd5 {[%emt 0:11:07][%cal Od5e7] Threatens to win with Ne7+!} Qxd2 {[%emt 0:02:54]} 15. Rxd2 {[%emt 0:00:17]} Bxd5 {[%emt 0:00:16]} 16. exd5 {[%emt 0:00:14]} Nce5 {[%emt 0:00:36]} 17. Nxe5 {[%emt 0:00:26]} Bxe5 {[%emt 0:00:28]} 18. Rb1 {[%emt 0:00:25]} Re8 {[%emt 0:00:31]} 19. g4 {[%emt 0:04:24]} Re7 {[%emt 0:06:20]} 20. g5 {[%emt 0:05:53]} Rce8 {[%emt 0:07:46]} 21. Bg4 {[%emt 0:01:01]} f5 {[%emt 0:02:40]} 22. gxf6 {[%emt 0:00:32]} Bxf6 {[%emt 0:00:12]} 23. Be6+ {[%emt 0:01:10]} Kg7 {[%emt 0:00:04]} 24. Bf4 {[%emt 0:00:53]} (24. f4 $11) 24... Ne5 $15 {[%emt 0:01:08]} 25. Bxe5 {[%emt 0:00:26]} Bxe5 {[%emt 0:00:02]} 26. Kg2 {[%emt 0:01:54]} Rf8 {[%emt 0:00:04]} 27. Rd3 {[%emt 0:03:05]} Rf4 {[%emt 0:00:31]} 28. b3 {[%emt 0:00:16]} a6 {[%emt 0:00:55]} 29. a4 {[%emt 0:00:48] [#]} b5 $1 {[%emt 0:00:42]} 30. cxb5 {[%emt 0:03:15]} (30. axb5 axb5) 30... axb5 {[%emt 0:00:05]} 31. axb5 {[%emt 0:00:37]} Rb4 {[%emt 0:00:40][%cal Oc5c4]} 32. Re1 {[%emt 0:01:14][%cal Oe1e5]} Bd4 {[%emt 0:01:08]} 33. Re2 {[%emt 0:06:09]} Ra7 {[%emt 0:02:47]} 34. Re4 {[%emt 0:05:07]} Rxb5 {[%emt 0:00:29]} 35. Bg4 {[%emt 0:02:10]} Rab7 {[%emt 0:03:30]} 36. Bd1 {[%emt 0:00:31]} Ra5 {[%emt 0:00:54]} 37. f4 {[%emt 0:01:39]} Rf7 {[%emt 0:05:18]} 38. Kg3 {[%emt 0:05:02]} Ra2 {[%emt 0:07:43]} 39. Re2 {[%emt 0:01:33]} Rfa7 {[%emt 0:03:37]} 40. b4 {[%emt 0:06:41]} Ra1 {[%emt 0:00:28]} (40... R2a3 $17 41. Rxa3 Rxa3+ 42. Kg2 Ra1) 41. bxc5 $11 {[%emt 0:36:35]} Bxc5 {[%emt 0:30:02]} 42. Rc2 {[%emt 0:03:05]} Rb7 {[%emt 0:00:44]} 43. Bf3 {[%emt 0:01:35]} Rb4 {[%emt 0:00:59]} 44. Bg2 {[%emt 0:01:48]} Raa4 {[%emt 0:01:37]} 45. Rf3 {[%emt 0:00:50]} Rd4 {[%emt 0:00:27]} 46. Rf1 {[%emt 0:00:51]} Rd3+ {[%emt 0:00:52]} 47. Kh2 {[%emt 0:01:14]} Kf6 {[%emt 0:00:55] Prevents f5.} 48. Re2 {[%emt 0:01:53] [#]} (48. Rf3 $142 Rxd5 49. Kg3) 48... Be3 $1 $17 {[%emt 0:00:30]} 49. Kh1 {[%emt 0:00:34]} Bxf4 {[%emt 0:02:36]} 50. h4 {[%emt 0:03:14]} (50. Rf3 $17 Ra1+ 51. Rf1 Rxf1+ 52. Bxf1 Rxd5 53. Kg2) 50... Kf5 {[%emt 0:04:27]} 51. Bf3 {[%emt 0:03:11]} Rad4 {[%emt 0:06:18]} (51... Be3 $19 52. Rh2 Rf4) 52. Re7 $1 $11 {[%emt 0:01:42]} Rxf3 {[%emt 0:06:17] The position is equal.} 53. Rxf3 {[%emt 0:00:17][%mdl 4096] Endgame KRR-KRB} Kg4 {[%emt 0:00:04]} 54. Kg2 {[%emt 0:02:10]} Kxh4 {[%emt 0:01:30] Hoping for ...h5.} 55. Rxh7+ {[%emt 0:01:34]} Kg4 {[%emt 0:00:14]} 56. Rhh3 {[%emt 0:00:00]} Rxd5 {[%emt 0:00:00]} 57. Rd3 {[%emt 0:00:00]} Re5 {[%emt 0:00:00]} 58. Rhf3 {[%emt 0:00:00]} (58. Rxd6 Re2+ 59. Kf1 Bxd6 $19) 58... Re6 {[%emt 0:00:00]} 59. Kf2 {[%emt 0:00:00]} g5 {[%emt 0:00:00]} 60. Rh3 {[%emt 0:00:00]} Be5 {[%emt 0:00:00]} 61. Rh1 {[%emt 0:00:00]} Bf4 {[%emt 0:00:00]} 62. Rg1+ {[%emt 0:00:00]} Kf5 {[%emt 0:00:00]} 63. Kf3 {[%emt 0:00:00]} Rh6 {[%emt 0:00:00]} 64. Rgd1 {[%emt 0:00:00]} Be5 {[%emt 0:00:00]} 65. Kg2 {[%emt 0:00:00]} g4 {[%emt 0:00:00]} 66. Rh1 {[%emt 0:00:00]} Rg6 {[%emt 0:00:00]} 67. Re3 {[%emt 0:00:00]} Rg8 {[%emt 0:00:00]} 68. Rh5+ {[%emt 0:00:00]} Kf4 {[%emt 0:00:00]} 69. Re2 {[%emt 0:00:00]} Ra8 {[%emt 0:00:00]} 70. Rf2+ {[%emt 0:00:00]} Ke3 {[%emt 0:00:00]} 71. Rh1 {[%emt 0:00:00]} Ke4 {[%emt 0:00:00]} 72. Rh4 {[%emt 0:00:00]} Rg8 {[%emt 0:00:00]} 73. Rh1 {[%emt 0:00:15]} Rg5 {[%emt 0:00:00]} 74. Re1+ {[%emt 0:00:47]} Kd5 {[%emt 0:00:00]} 75. Rd1+ {[%emt 0:00:25]} Ke6 {[%emt 0:00:00]} 76. Rh1 {[%emt 0:01:01]} Rg6 {[%emt 0:00:00]} 77. Rh5 {[%emt 0:00:49]} Kd5 {[%emt 0:00:00]} 78. Rd2+ {[%emt 0:00:38]} Ke4 {[%emt 0:00:00]} 79. Re2+ {[%emt 0:00:36]} Kf4 {[%emt 0:00:00]} 80. Re1 {[%emt 0:01:12]} g3 {[%emt 0:01:45]} 81. Rf1+ {[%emt 0:02:13]} Ke4 {[%emt 0:00:57]} 82. Re1+ {[%emt 0:00:29]} Kd5 {[%emt 0:00:02]} 83. Rd1+ {[%emt 0:00:39]} Ke6 {[%emt 0:00:06]} 84. Rf1 {[%emt 0:00:28]} Rg7 {[%emt 0:05:16]} 85. Rh6+ {[%emt 0:00:19]} Kd7 {[%emt 0:00:09]} 86. Rf5 {[%emt 0:00:51]} Re7 {[%emt 0:00:34]} 87. Rf1 {[%emt 0:00:37]} Rg7 {[%emt 0:03:38]} 88. Rb1 {[%emt 0:00:52]} Rg4 {[%emt 0:00:37]} 89. Re1 {[%emt 0:00:32]} Rd4 {[%emt 0:00:49]} 90. Rxe5 {[%emt 0:00:59]} dxe5 {[%emt 0:00:06]} 91. Kxg3 {[%emt 0:00:16] KR-KR} Rf4 {[%emt 0:00:08]} 92. Ra6 {[%emt 0:00:36]} Rf8 {[%emt 0:00:19]} 93. Rb6 {[%emt 0:00:26]} Rf1 {[%emt 0:00:34]} 94. Kg2 {[%emt 0:00:20]} Rf5 {[%emt 0:00:06]} 95. Kg3 {[%emt 0:00:15]} Ke7 {[%emt 0:00:04]} 96. Ra6 {[%emt 0:01:09]} Rf1 {[%emt 0:00:06]} 97. Rb6 {[%emt 0:00:21]} Rf6 {[%emt 0:00:43]} 98. Rxf6 {[%emt 0:01:01]} Kxf6 {[%emt 0:00:04] KP-K} 99. Kf3 {[%emt 0:00:13][%cal Bg3f3,Bf3e3,Be3e2,Be2f2][%mdl 32]} Kf5 {[%emt 0:00:02][%cal Bf6f5,Bf5f4,Bf4e4,Be4f3,Bf3e3][%mdl 32]} 100. Ke3 {[%emt 0:00:13]} e4 {[%emt 0:00:06][%cal Be5e4,Be4e3,Be3e2][%mdl 32]} 101. Ke2 {[%emt 0:00:16]} Kf4 {[%emt 0:00:03]} 102. Kf2 {[%emt 0:00:11]} e3+ {[%emt 0:00:03]} 103. Ke2 {[%emt 0:00:10]} Ke4 {[%emt 0:00:01]} 104. Ke1 {[%emt 0:00:12]} Kf3 {[%emt 0:00:02]} (104... Kd3 $5 105. Kd1 $8 Ke4 $11) 105. Kf1 {[%emt 0:00:11]} e2+ {[%emt 0:00:02]} 106. Ke1 {[%emt 0:00:07]} Ke3 {[%emt 0:00:01] Weighted Error Value: White=0.14 (very precise) /Black=0.16 (very precise)} 1/2-1/2